[Event "*** SCC Grand Prix: Titled Tuesday Blitz"]
[Site "Chess.com"]
[Date "2020.08.11"]
[Round "2"]
[White "NotFischer"]
[Black "TokChess"]
[Result "0-1"]
[WhiteElo "2094"]
[BlackElo "2382"]
[TimeControl "180+1"]
[EndTime "10:18:36 PDT"]
[Termination "TokChess won by resignation"]

1. e4 {[%clk 0:03:00.9]} 1... c5 {[%clk 0:03:00.1]} 2. Nf3 {[%clk 0:03:00.3]}
2... d6 {[%clk 0:03:00.5]} 3. d4 {[%clk 0:03:00]} 3... cxd4 {[%clk 0:03:01.1]}
4. Nxd4 {[%clk 0:03:00.5]} 4... Nf6 {[%clk 0:03:01.4]} 5. Nc3 {[%clk 0:03:00.4]}
5... g6 {[%clk 0:03:01.8]} 6. Be2 {[%clk 0:02:58.4]} 6... Bg7 {[%clk 0:03:01.8]}
7. Be3 {[%clk 0:02:58.8]} 7... O-O {[%clk 0:03:00.9]} 8. O-O {[%clk 0:02:59.3]}
8... Nc6 {[%clk 0:03:01.3]} 9. Qd2 {[%clk 0:02:56.7]} 9... Bd7 {[%clk
0:02:59.3]} 10. h3 {[%clk 0:02:52.2]} 10... Rc8 {[%clk 0:02:59.2]} 11. f4 {[%clk
0:02:38.3]} 11... Qa5 {[%clk 0:02:34.1]} 12. Nb3 {[%clk 0:02:23.5]} 12... Qc7
{[%clk 0:02:28.2]} 13. Rad1 {[%clk 0:02:17.3]} 13... Rfd8 {[%clk 0:02:14.7]} 14.
Bf3 {[%clk 0:02:12.6]} 14... Qb8 {[%clk 0:02:01.8]} 15. Nd4 {[%clk 0:02:07.6]}
15... b5 {[%clk 0:01:51.8]} 16. Nxc6 {[%clk 0:02:02]} 16... Bxc6 {[%clk
0:01:51.5]} 17. a3 {[%clk 0:02:00.8]} 17... a5 {[%clk 0:01:47.8]} 18. f5 {[%clk
0:01:38.9]} 18... b4 {[%clk 0:01:46.5]} 19. axb4 {[%clk 0:01:33.8]} 19... Qxb4
{[%clk 0:01:39.7]} 20. Nd5 {[%clk 0:01:30.5]} 20... Bxd5 {[%clk 0:01:32.4]} 21.
exd5 {[%clk 0:01:25.2]} 21... Qxb2 {[%clk 0:01:24.8]} 22. Qxa5 {[%clk
0:00:59.1]} 22... Qc3 {[%clk 0:01:15.1]} 23. Qa7 {[%clk 0:00:45.6]} 23... Rc7
{[%clk 0:01:06.2]} 24. Qb6 {[%clk 0:00:42.4]} 24... Nd7 {[%clk 0:01:02.7]} 25.
Qb3 {[%clk 0:00:20.5]} 25... Qxb3 {[%clk 0:00:58.3]} 26. cxb3 {[%clk 0:00:21.4]}
26... Rc3 {[%clk 0:00:56.2]} 27. Bg5 {[%clk 0:00:16.5]} 27... Bf6 {[%clk
0:00:49.6]} 28. Bxf6 {[%clk 0:00:16]} 28... Nxf6 {[%clk 0:00:49.5]} 29. fxg6
{[%clk 0:00:16.4]} 29... hxg6 {[%clk 0:00:49.2]} 30. Rb1 {[%clk 0:00:16.9]}
30... Rb8 {[%clk 0:00:48.2]} 31. b4 {[%clk 0:00:17]} 31... Rc4 {[%clk
0:00:42.3]} 32. b5 {[%clk 0:00:17.4]} 32... Rc5 {[%clk 0:00:38.1]} 33. Rfe1
{[%clk 0:00:17.1]} 33... Kf8 {[%clk 0:00:36.1]} 34. b6 {[%clk 0:00:16.6]} 34...
Nd7 {[%clk 0:00:33.3]} 35. Rb4 {[%clk 0:00:14]} 35... Rxb6 {[%clk 0:00:29.6]}
36. Rbe4 {[%clk 0:00:11.5]} 36... Ne5 {[%clk 0:00:29.3]} 37. Bd1 {[%clk
0:00:09.9]} 37... Rc4 {[%clk 0:00:24.2]} 0-1

[Event "*** SCC Grand Prix: Titled Tuesday Blitz"]
[Site "Chess.com"]
[Date "2020.08.11"]
[Round "2"]
[White "MartinMatthiesen"]
[Black "viniciusrego"]
[Result "1-0"]
[WhiteElo "2457"]
[BlackElo "2255"]
[TimeControl "180+1"]
[EndTime "10:18:37 PDT"]
[Termination "MartinMatthiesen won by resignation"]

1. d4 {[%clk 0:02:56.5]} 1... Nf6 {[%clk 0:02:58.8]} 2. c4 {[%clk 0:02:55.6]}
2... e6 {[%clk 0:02:59]} 3. Nf3 {[%clk 0:02:54.9]} 3... Bb4+ {[%clk 0:02:58.7]}
4. Bd2 {[%clk 0:02:54.4]} 4... Bxd2+ {[%clk 0:02:58.1]} 5. Qxd2 {[%clk
0:02:54.1]} 5... O-O {[%clk 0:02:59]} 6. g3 {[%clk 0:02:52.2]} 6... d6 {[%clk
0:02:56.1]} 7. Bg2 {[%clk 0:02:51.9]} 7... Nbd7 {[%clk 0:02:55.7]} 8. O-O {[%clk
0:02:51.1]} 8... e5 {[%clk 0:02:55.9]} 9. Nc3 {[%clk 0:02:50.5]} 9... Re8 {[%clk
0:02:48.3]} 10. Rfd1 {[%clk 0:02:47.7]} 10... Qe7 {[%clk 0:02:46.2]} 11. dxe5
{[%clk 0:02:17.8]} 11... Nxe5 {[%clk 0:02:45.4]} 12. Nd5 {[%clk 0:02:17]} 12...
Nxd5 {[%clk 0:02:43]} 13. cxd5 {[%clk 0:02:17.9]} 13... Nc4 {[%clk 0:02:32.1]}
14. Qc3 {[%clk 0:02:16.8]} 14... Nb6 {[%clk 0:02:15]} 15. Nd4 {[%clk 0:02:13.9]}
15... Bg4 {[%clk 0:02:04.4]} 16. h3 {[%clk 0:02:07.6]} 16... Bh5 {[%clk
0:01:57.3]} 17. Rac1 {[%clk 0:01:48.1]} 17... Rac8 {[%clk 0:01:54.2]} 18. Nf5
{[%clk 0:01:31.3]} 18... Qe5 {[%clk 0:01:42.5]} 19. Qxe5 {[%clk 0:01:18.4]}
19... Rxe5 {[%clk 0:01:42.1]} 20. g4 {[%clk 0:01:18.9]} 20... Bg6 {[%clk
0:01:39.5]} 21. Ng3 {[%clk 0:00:57]} 21... f6 {[%clk 0:01:32]} 22. f4 {[%clk
0:00:50.8]} 22... Re7 {[%clk 0:01:31.8]} 23. e4 {[%clk 0:00:49.8]} 23... Be8
{[%clk 0:01:26.6]} 24. Nf5 {[%clk 0:00:42.7]} 24... Rd7 {[%clk 0:01:20.6]} 25.
h4 {[%clk 0:00:39.6]} 25... Bg6 {[%clk 0:01:16.5]} 26. Ng3 {[%clk 0:00:37.3]}
26... c5 {[%clk 0:01:00.7]} 27. g5 {[%clk 0:00:34.2]} 27... fxg5 {[%clk
0:00:56.2]} 28. hxg5 {[%clk 0:00:34]} 28... Be8 {[%clk 0:00:51.6]} 29. Bh3
{[%clk 0:00:33.4]} 29... Rcd8 {[%clk 0:00:48]} 30. Bxd7 {[%clk 0:00:32.7]} 30...
Nxd7 {[%clk 0:00:48.1]} 31. Nf5 {[%clk 0:00:31.6]} 31... Nb6 {[%clk 0:00:40.3]}
32. e5 {[%clk 0:00:27.2]} 32... dxe5 {[%clk 0:00:38.2]} 33. fxe5 {[%clk
0:00:28.1]} 33... g6 {[%clk 0:00:33.8]} 34. Ne3 {[%clk 0:00:27.2]} 34... Rc8
{[%clk 0:00:29.9]} 35. d6 {[%clk 0:00:25.8]} 35... Bd7 {[%clk 0:00:30]} 36. Nd5
{[%clk 0:00:25.2]} 36... Nxd5 {[%clk 0:00:29.5]} 37. Rxd5 {[%clk 0:00:26.1]}
37... Kf7 {[%clk 0:00:29.9]} 38. Rdxc5 {[%clk 0:00:25.8]} 38... Bc6 {[%clk
0:00:30.5]} 39. Rf1+ {[%clk 0:00:21.2]} 39... Ke6 {[%clk 0:00:30.3]} 40. Rf6+
{[%clk 0:00:21]} 40... Kd7 {[%clk 0:00:30.8]} 41. Rf7+ {[%clk 0:00:21.4]} 41...
Kd8 {[%clk 0:00:29.3]} 42. Rxh7 {[%clk 0:00:20.8]} 42... b6 {[%clk 0:00:28.7]}
43. Rh8+ {[%clk 0:00:19.7]} 43... Kd7 {[%clk 0:00:28.7]} 44. Rxc8 {[%clk
0:00:20.2]} 44... Bb5 {[%clk 0:00:28.8]} 45. R5c7+ {[%clk 0:00:19.3]} 1-0

[Event "*** SCC Grand Prix: Titled Tuesday Blitz"]
[Site "Chess.com"]
[Date "2020.08.11"]
[Round "2"]
[White "Nemsko"]
[Black "alexrustemov"]
[Result "1-0"]
[WhiteElo "2346"]
[BlackElo "2641"]
[TimeControl "180+1"]
[EndTime "10:18:39 PDT"]
[Termination "Nemsko won by resignation"]

1. e4 {[%clk 0:03:00.9]} 1... e6 {[%clk 0:02:59.7]} 2. d4 {[%clk 0:03:01]} 2...
d5 {[%clk 0:03:00.6]} 3. Nc3 {[%clk 0:03:00.7]} 3... Bb4 {[%clk 0:03:00.1]} 4.
e5 {[%clk 0:03:01]} 4... c5 {[%clk 0:03:00]} 5. a3 {[%clk 0:03:01.7]} 5... Bxc3+
{[%clk 0:03:00.3]} 6. bxc3 {[%clk 0:03:02.6]} 6... Ne7 {[%clk 0:03:01]} 7. h4
{[%clk 0:03:02.7]} 7... Qc7 {[%clk 0:03:00.7]} 8. Nf3 {[%clk 0:03:00.4]} 8... h6
{[%clk 0:02:59]} 9. h5 {[%clk 0:03:00.7]} 9... b6 {[%clk 0:02:58.4]} 10. Bb5+
{[%clk 0:02:59.5]} 10... Bd7 {[%clk 0:02:58.5]} 11. Bd3 {[%clk 0:02:59.4]} 11...
Ba4 {[%clk 0:02:58.6]} 12. Bd2 {[%clk 0:02:58.1]} 12... Nd7 {[%clk 0:02:57.2]}
13. Rh4 {[%clk 0:02:57.5]} 13... a6 {[%clk 0:02:47.4]} 14. Rf4 {[%clk
0:02:57.1]} 14... Bb5 {[%clk 0:02:44.5]} 15. Nh4 {[%clk 0:02:53.4]} 15... Bxd3
{[%clk 0:02:37.6]} 16. cxd3 {[%clk 0:02:54.3]} 16... O-O {[%clk 0:02:22.9]} 17.
Qg4 {[%clk 0:02:50]} 17... Kh7 {[%clk 0:02:18]} 18. Rf3 {[%clk 0:02:32.7]} 18...
Rae8 {[%clk 0:02:02.2]} 19. Rg3 {[%clk 0:02:24.7]} 19... Rg8 {[%clk 0:02:01.3]}
20. Qf4 {[%clk 0:02:24.8]} 20... f6 {[%clk 0:01:38.9]} 21. Ng6 {[%clk
0:01:35.8]} 21... Nf5 {[%clk 0:01:31.1]} 22. Rf3 {[%clk 0:01:30.7]} 22... fxe5
{[%clk 0:01:23.4]} 23. dxe5 {[%clk 0:01:26.9]} 23... Ne7 {[%clk 0:01:09.7]} 24.
g4 {[%clk 0:01:11]} 24... Nxg6 {[%clk 0:00:50.9]} 25. hxg6+ {[%clk 0:01:11.9]}
25... Kxg6 {[%clk 0:00:51.2]} 26. Qf7+ {[%clk 0:00:58.2]} 26... Kh7 {[%clk
0:00:51.2]} 27. Rh3 {[%clk 0:00:37.1]} 27... Qxe5+ {[%clk 0:00:20.9]} 28. Kd1
{[%clk 0:00:33.6]} 28... Qf6 {[%clk 0:00:20.1]} 29. Rxh6+ {[%clk 0:00:29.6]}
29... Qxh6 {[%clk 0:00:19.6]} 30. Bxh6 {[%clk 0:00:30.1]} 30... Ne5 {[%clk
0:00:18.8]} 31. Qh5 {[%clk 0:00:27.5]} 31... g6 {[%clk 0:00:11.1]} 32. Qxe5
{[%clk 0:00:26.7]} 32... Kxh6 {[%clk 0:00:07]} 33. Kd2 {[%clk 0:00:20.5]} 33...
g5 {[%clk 0:00:06.5]} 34. Qf6+ {[%clk 0:00:19.8]} 1-0

[Event "*** SCC Grand Prix: Titled Tuesday Blitz"]
[Site "Chess.com"]
[Date "2020.08.11"]
[Round "2"]
[White "Heineccius"]
[Black "gagtemp"]
[Result "1-0"]
[WhiteElo "2614"]
[BlackElo "1966"]
[TimeControl "180+1"]
[EndTime "10:18:40 PDT"]
[Termination "Heineccius won by resignation"]

1. d4 {[%clk 0:03:00.9]} 1... d5 {[%clk 0:02:59.6]} 2. c4 {[%clk 0:02:59.2]}
2... e6 {[%clk 0:02:59.6]} 3. Nc3 {[%clk 0:02:58.6]} 3... c5 {[%clk 0:02:59.6]}
4. cxd5 {[%clk 0:02:56.4]} 4... exd5 {[%clk 0:03:00.5]} 5. Nf3 {[%clk 0:02:56]}
5... Nc6 {[%clk 0:03:00.5]} 6. g3 {[%clk 0:02:55]} 6... Nf6 {[%clk 0:03:00.3]}
7. Bg2 {[%clk 0:02:54.5]} 7... Be7 {[%clk 0:03:00]} 8. O-O {[%clk 0:02:53.8]}
8... O-O {[%clk 0:02:58.8]} 9. dxc5 {[%clk 0:02:52.7]} 9... Bxc5 {[%clk
0:02:57.1]} 10. Na4 {[%clk 0:02:52.2]} 10... Be7 {[%clk 0:02:55.1]} 11. Be3
{[%clk 0:02:52.6]} 11... Re8 {[%clk 0:02:54.8]} 12. Rc1 {[%clk 0:02:48.1]} 12...
Bg4 {[%clk 0:02:52.7]} 13. Bc5 {[%clk 0:02:46.5]} 13... Qd7 {[%clk 0:02:45.4]}
14. Re1 {[%clk 0:02:33.9]} 14... Rac8 {[%clk 0:02:27.9]} 15. Nd4 {[%clk
0:02:09.4]} 15... Bd8 {[%clk 0:02:17.4]} 16. Nxc6 {[%clk 0:02:00.4]} 16... bxc6
{[%clk 0:02:15.4]} 17. Bd4 {[%clk 0:01:54.6]} 17... Bh3 {[%clk 0:02:08.9]} 18.
Nc5 {[%clk 0:01:50.2]} 18... Qf5 {[%clk 0:02:00]} 19. Nd3 {[%clk 0:01:18.8]}
19... Ne4 {[%clk 0:01:44.2]} 20. f3 {[%clk 0:01:12.9]} 20... Nd6 {[%clk
0:01:19.9]} 21. g4 {[%clk 0:01:03.8]} 21... Bxg4 {[%clk 0:00:41.2]} 22. fxg4
{[%clk 0:01:04.7]} 22... Qxg4 {[%clk 0:00:39.3]} 23. e3 {[%clk 0:01:02.9]} 23...
Qg5 {[%clk 0:00:27.7]} 24. Kh1 {[%clk 0:01:00.1]} 24... Bb6 {[%clk 0:00:17]} 25.
Nc5 {[%clk 0:00:39.8]} 25... Bxc5 {[%clk 0:00:15.9]} 26. Bxc5 {[%clk 0:00:37.8]}
26... Ne4 {[%clk 0:00:15.9]} 27. Qf3 {[%clk 0:00:36.2]} 27... f5 {[%clk
0:00:13.3]} 28. b4 {[%clk 0:00:27.2]} 28... g6 {[%clk 0:00:13.1]} 29. Bd4 {[%clk
0:00:26.9]} 29... Nd6 {[%clk 0:00:11.4]} 30. Rg1 {[%clk 0:00:26.1]} 30... Qh6
{[%clk 0:00:10.3]} 31. Bf1 {[%clk 0:00:23.2]} 31... Ne4 {[%clk 0:00:09.9]} 32.
Qxf5 {[%clk 0:00:19.4]} 32... Rf8 {[%clk 0:00:03.8]} 33. Qe6+ {[%clk 0:00:19.1]}
33... Rf7 {[%clk 0:00:02.4]} 34. Qxc8+ {[%clk 0:00:19.5]} 1-0

[Event "*** SCC Grand Prix: Titled Tuesday Blitz"]
[Site "Chess.com"]
[Date "2020.08.11"]
[Round "2"]
[White "pfalcon1949"]
[Black "pooh2012"]
[Result "0-1"]
[WhiteElo "1965"]
[BlackElo "2355"]
[TimeControl "180+1"]
[EndTime "10:18:40 PDT"]
[Termination "pooh2012 won by resignation"]

1. d4 {[%clk 0:03:00.9]} 1... d5 {[%clk 0:02:57.5]} 2. c4 {[%clk 0:03:01]} 2...
dxc4 {[%clk 0:02:58.4]} 3. e4 {[%clk 0:02:59.8]} 3... e5 {[%clk 0:02:58.6]} 4.
Nf3 {[%clk 0:02:56.3]} 4... exd4 {[%clk 0:02:58.3]} 5. Bxc4 {[%clk 0:02:55.9]}
5... Nc6 {[%clk 0:02:58.2]} 6. Qb3 {[%clk 0:02:54.1]} 6... Bb4+ {[%clk
0:02:49.4]} 7. Bd2 {[%clk 0:02:49.6]} 7... Bxd2+ {[%clk 0:02:47.5]} 8. Nbxd2
{[%clk 0:02:50.5]} 8... Nh6 {[%clk 0:02:03.5]} 9. e5 {[%clk 0:02:15.5]} 9... O-O
{[%clk 0:01:56.3]} 10. O-O {[%clk 0:02:15.9]} 10... Na5 {[%clk 0:01:45.8]} 11.
Qc2 {[%clk 0:02:14]} 11... Nxc4 {[%clk 0:01:26.8]} 12. Qxc4 {[%clk 0:02:13.8]}
12... d3 {[%clk 0:01:21.4]} 13. Ne4 {[%clk 0:02:07.8]} 13... Be6 {[%clk
0:01:07.2]} 14. Qc3 {[%clk 0:02:05.5]} 14... Bg4 {[%clk 0:01:00.2]} 15. Rad1
{[%clk 0:01:57.4]} 15... Bxf3 {[%clk 0:00:43]} 16. gxf3 {[%clk 0:01:56.3]} 16...
Qe7 {[%clk 0:00:36.8]} 17. Rxd3 {[%clk 0:01:49.6]} 17... Rad8 {[%clk 0:00:36.9]}
18. Rfd1 {[%clk 0:01:48]} 18... Rxd3 {[%clk 0:00:35.4]} 19. Rxd3 {[%clk
0:01:48.1]} 19... Rd8 {[%clk 0:00:35.1]} 20. f4 {[%clk 0:01:44.1]} 20... Rxd3
{[%clk 0:00:31.6]} 21. Qxd3 {[%clk 0:01:43.7]} 21... Nf5 {[%clk 0:00:22.9]} 22.
Nf6+ {[%clk 0:01:27.3]} 22... gxf6 {[%clk 0:00:22.9]} 23. Qxf5 {[%clk
0:01:27.4]} 23... fxe5 {[%clk 0:00:23.1]} 24. fxe5 {[%clk 0:01:25.5]} 24... Qe6
{[%clk 0:00:22.4]} 25. Qg5+ {[%clk 0:01:17.2]} 25... Qg6 {[%clk 0:00:21]} 26. h4
{[%clk 0:01:14.4]} 26... h6 {[%clk 0:00:19.8]} 27. Qxg6+ {[%clk 0:01:13.6]}
27... fxg6 {[%clk 0:00:20.7]} 28. f4 {[%clk 0:01:12.6]} 28... Kf7 {[%clk
0:00:21.1]} 29. Kf2 {[%clk 0:01:13]} 29... Ke6 {[%clk 0:00:21.6]} 30. Kf3 {[%clk
0:01:13.6]} 30... Kf5 {[%clk 0:00:22.2]} 31. b4 {[%clk 0:01:11.3]} 31... c6
{[%clk 0:00:19.1]} 32. a4 {[%clk 0:01:07]} 32... b6 {[%clk 0:00:19.4]} 33. Ke3
{[%clk 0:00:57.4]} 33... g5 {[%clk 0:00:15.8]} 34. hxg5 {[%clk 0:00:56.6]} 34...
hxg5 {[%clk 0:00:16.7]} 35. fxg5 {[%clk 0:00:55.2]} 35... Kxe5 {[%clk
0:00:17.1]} 36. g6 {[%clk 0:00:51.8]} 36... Kf6 {[%clk 0:00:17.1]} 37. g7 {[%clk
0:00:52.7]} 37... Kxg7 {[%clk 0:00:16.8]} 38. Kd4 {[%clk 0:00:51.6]} 38... Kf6
{[%clk 0:00:16.6]} 39. a5 {[%clk 0:00:48.9]} 39... Ke6 {[%clk 0:00:16.2]} 40.
axb6 {[%clk 0:00:48.2]} 40... axb6 {[%clk 0:00:16.4]} 41. Kc4 {[%clk 0:00:47.9]}
41... Ke5 {[%clk 0:00:15.7]} 42. Kd3 {[%clk 0:00:43.8]} 42... Kd5 {[%clk
0:00:15.5]} 43. Kc3 {[%clk 0:00:44.3]} 43... Ke4 {[%clk 0:00:15.7]} 44. Kc4
{[%clk 0:00:44.3]} 44... Ke5 {[%clk 0:00:15.6]} 45. Kc3 {[%clk 0:00:43]} 45...
Kd5 {[%clk 0:00:16]} 46. Kd3 {[%clk 0:00:43.5]} 46... b5 {[%clk 0:00:16.6]} 47.
Kc3 {[%clk 0:00:43.2]} 47... Ke4 {[%clk 0:00:17.1]} 48. Kb3 {[%clk 0:00:36.3]}
48... Kd4 {[%clk 0:00:17.3]} 49. Kb2 {[%clk 0:00:34.2]} 49... Kc4 {[%clk
0:00:18.2]} 50. Ka3 {[%clk 0:00:33.7]} 50... Kc3 {[%clk 0:00:18.6]} 51. Ka2
{[%clk 0:00:33.6]} 51... Kxb4 {[%clk 0:00:19.4]} 52. Kb2 {[%clk 0:00:33.6]}
52... c5 {[%clk 0:00:19.8]} 53. Kc2 {[%clk 0:00:34.1]} 53... Ka3 {[%clk
0:00:20.2]} 0-1

[Event "*** SCC Grand Prix: Titled Tuesday Blitz"]
[Site "Chess.com"]
[Date "2020.08.11"]
[Round "2"]
[White "XxPetroffsxX"]
[Black "kasparicy"]
[Result "1/2-1/2"]
[WhiteElo "2011"]
[BlackElo "2355"]
[TimeControl "180+1"]
[EndTime "10:18:44 PDT"]
[Termination "Game drawn by repetition"]

1. e4 {[%clk 0:03:00]} 1... c5 {[%clk 0:02:58.4]} 2. Nf3 {[%clk 0:02:59.9]} 2...
d6 {[%clk 0:02:58.7]} 3. d4 {[%clk 0:02:59]} 3... cxd4 {[%clk 0:02:59.6]} 4.
Nxd4 {[%clk 0:02:59.4]} 4... Nf6 {[%clk 0:02:59.9]} 5. Nc3 {[%clk 0:02:59]} 5...
a6 {[%clk 0:03:00.8]} 6. h3 {[%clk 0:02:58.6]} 6... e6 {[%clk 0:02:59.6]} 7. g4
{[%clk 0:02:58.7]} 7... b5 {[%clk 0:03:00]} 8. Bg2 {[%clk 0:02:56.8]} 8... Bb7
{[%clk 0:03:00.3]} 9. a3 {[%clk 0:02:51.3]} 9... h6 {[%clk 0:02:53.2]} 10. O-O
{[%clk 0:02:48]} 10... Be7 {[%clk 0:02:53.4]} 11. Be3 {[%clk 0:02:45.5]} 11...
Nbd7 {[%clk 0:02:52.6]} 12. f4 {[%clk 0:02:44.4]} 12... Rc8 {[%clk 0:02:47.8]}
13. Nde2 {[%clk 0:02:39.5]} 13... Nc5 {[%clk 0:02:32]} 14. Ng3 {[%clk
0:02:35.7]} 14... Qc7 {[%clk 0:02:22.9]} 15. Rc1 {[%clk 0:02:10.6]} 15... Rd8
{[%clk 0:02:10.2]} 16. Qe2 {[%clk 0:02:04.4]} 16... d5 {[%clk 0:01:53.4]} 17.
exd5 {[%clk 0:01:53]} 17... Nxd5 {[%clk 0:01:51.8]} 18. Nxd5 {[%clk 0:01:51.1]}
18... Bxd5 {[%clk 0:01:52.7]} 19. Bxd5 {[%clk 0:01:42.8]} 19... Rxd5 {[%clk
0:01:53.6]} 20. c4 {[%clk 0:01:31.5]} 20... bxc4 {[%clk 0:01:48]} 21. Rxc4
{[%clk 0:01:29]} 21... Qd7 {[%clk 0:01:22.3]} 22. f5 {[%clk 0:01:09.5]} 22...
O-O {[%clk 0:01:13.7]} 23. f6 {[%clk 0:01:07.3]} 23... Bd6 {[%clk 0:01:07.3]}
24. Nh5 {[%clk 0:00:54.4]} 24... Rxh5 {[%clk 0:01:01.9]} 25. gxh5 {[%clk
0:00:52.9]} 25... e5 {[%clk 0:00:19.3]} 26. Bxc5 {[%clk 0:00:46.6]} 26... Bxc5+
{[%clk 0:00:18.6]} 27. Rxc5 {[%clk 0:00:46.3]} 27... Qxh3 {[%clk 0:00:16.9]} 28.
Qg2 {[%clk 0:00:45.1]} 28... Qe3+ {[%clk 0:00:16.1]} 29. Kh1 {[%clk 0:00:44.9]}
29... g5 {[%clk 0:00:14.3]} 30. hxg6 {[%clk 0:00:41.6]} 30... Qxc5 {[%clk
0:00:13.3]} 31. gxf7+ {[%clk 0:00:41]} 31... Kxf7 {[%clk 0:00:14.1]} 32. Qb7+
{[%clk 0:00:39.9]} 32... Ke6 {[%clk 0:00:12.8]} 33. Qxa6+ {[%clk 0:00:38.9]}
33... Kf7 {[%clk 0:00:12.8]} 34. Qb7+ {[%clk 0:00:38.8]} 34... Ke6 {[%clk
0:00:13.2]} 35. Qa6+ {[%clk 0:00:37.4]} 35... Kf7 {[%clk 0:00:13.3]} 36. Qb7+
{[%clk 0:00:37.3]} 36... Ke6 {[%clk 0:00:13.5]} 37. Qa6+ {[%clk 0:00:37.3]}
1/2-1/2

[Event "*** SCC Grand Prix: Titled Tuesday Blitz"]
[Site "Chess.com"]
[Date "2020.08.11"]
[Round "2"]
[White "LubovMarkelova"]
[Black "chargemax23"]
[Result "0-1"]
[WhiteElo "2289"]
[BlackElo "2648"]
[TimeControl "180+1"]
[EndTime "10:18:45 PDT"]
[Termination "chargemax23 won by resignation"]

1. d4 {[%clk 0:02:57.9]} 1... Nf6 {[%clk 0:02:59.4]} 2. Nf3 {[%clk 0:02:58.3]}
2... d6 {[%clk 0:02:59.4]} 3. g3 {[%clk 0:02:58.4]} 3... Nbd7 {[%clk 0:02:57.2]}
4. Bg2 {[%clk 0:02:58.6]} 4... e5 {[%clk 0:02:57.8]} 5. O-O {[%clk 0:02:56.9]}
5... c6 {[%clk 0:02:57.8]} 6. Nc3 {[%clk 0:02:54.6]} 6... e4 {[%clk 0:02:56.9]}
7. Nd2 {[%clk 0:02:53.6]} 7... d5 {[%clk 0:02:56.8]} 8. f3 {[%clk 0:02:43.7]}
8... exf3 {[%clk 0:02:50.1]} 9. exf3 {[%clk 0:02:42.7]} 9... Be7 {[%clk
0:02:49.4]} 10. Re1 {[%clk 0:02:34.3]} 10... O-O {[%clk 0:02:49.1]} 11. f4
{[%clk 0:02:28.7]} 11... Re8 {[%clk 0:02:41.2]} 12. Nf3 {[%clk 0:02:27.5]} 12...
Nf8 {[%clk 0:02:39]} 13. Ne5 {[%clk 0:02:25.8]} 13... h5 {[%clk 0:02:37.4]} 14.
h3 {[%clk 0:02:15.3]} 14... Qb6 {[%clk 0:02:31.7]} 15. Kh2 {[%clk 0:02:03.9]}
15... Ne6 {[%clk 0:02:15.2]} 16. Ne2 {[%clk 0:01:21.9]} 16... Ne4 {[%clk
0:02:12.4]} 17. Bxe4 {[%clk 0:01:17.7]} 17... dxe4 {[%clk 0:02:11.8]} 18. c3
{[%clk 0:01:17.4]} 18... h4 {[%clk 0:01:54.9]} 19. g4 {[%clk 0:01:15.2]} 19...
Nf8 {[%clk 0:01:48.2]} 20. f5 {[%clk 0:01:02.4]} 20... Bd6 {[%clk 0:01:47.1]}
21. Bf4 {[%clk 0:00:59.7]} 21... Qxb2 {[%clk 0:01:45.5]} 22. Rb1 {[%clk
0:00:54.9]} 22... Qxa2 {[%clk 0:01:44.2]} 23. Ra1 {[%clk 0:00:36]} 23... Qb2
{[%clk 0:01:38.6]} 24. Rb1 {[%clk 0:00:22.2]} 24... Qa2 {[%clk 0:01:28.1]} 25.
Kh1 {[%clk 0:00:22.6]} 25... e3 {[%clk 0:01:25.7]} 26. Ra1 {[%clk 0:00:19.1]}
26... Qd5+ {[%clk 0:01:25.2]} 27. Kg1 {[%clk 0:00:17.5]} 27... f6 {[%clk
0:01:24.5]} 28. c4 {[%clk 0:00:16.5]} 28... Qe4 {[%clk 0:01:23.7]} 29. Ng6
{[%clk 0:00:10.5]} 29... Bxf4 {[%clk 0:01:20]} 30. Ngxf4 {[%clk 0:00:10.8]}
30... c5 {[%clk 0:01:08.3]} 31. d5 {[%clk 0:00:10.6]} 31... Bd7 {[%clk
0:01:07.3]} 32. Ne6 {[%clk 0:00:10.7]} 32... Qf3 {[%clk 0:01:02.4]} 33. N2f4
{[%clk 0:00:08.6]} 33... Qg3+ {[%clk 0:01:01.9]} 34. Kh1 {[%clk 0:00:08.5]}
34... Bxe6 {[%clk 0:01:02]} 35. Nxe6 {[%clk 0:00:08.5]} 35... Qxh3+ {[%clk
0:01:01.9]} 36. Kg1 {[%clk 0:00:08.1]} 36... Qg3+ {[%clk 0:01:01.6]} 37. Kh1
{[%clk 0:00:07.5]} 37... Nxe6 {[%clk 0:00:50.7]} 38. fxe6 {[%clk 0:00:07.5]}
38... Rad8 {[%clk 0:00:50.2]} 39. Qe2 {[%clk 0:00:06.6]} 39... b5 {[%clk
0:00:45.1]} 40. Rxa7 {[%clk 0:00:04.4]} 40... bxc4 {[%clk 0:00:44.5]} 41. Qxc4
{[%clk 0:00:04.7]} 41... Qxe1+ {[%clk 0:00:42.8]} 42. Kh2 {[%clk 0:00:04.4]}
42... Qf2+ {[%clk 0:00:41.8]} 43. Kh1 {[%clk 0:00:04.7]} 43... e2 {[%clk
0:00:41.9]} 0-1